bitfinex/quotes_ETHUSD_20250430
["timestamp","ask_amount","ask_price","bid_price","bid_amount"]
[1745974532810,0.15359684,1808.2,1807.8,1.17695955]
[1745974539011,0.15359684,1808.2,1807.9,1.57014448]
[1745974540046,0.15359684,1808.2,1807.9,7.10139193]
[1745974540633,0.15359684,1808.2,1807.9,7.15669617]
[1745974540794,0.15359684,1808.2,1808.0,6.29919131]
[1745974541133,0.8062,1808.6,1808.1,1.57014448]
[1745974542126,0.8062,1808.6,1807.9,2.35874448]
[1745974542348,3.8062,1808.6,1807.8,1.20805955]
[1745974542645,0.7997,1808.4,1807.8,0.7886]
[1745974544148,0.7997,1808.4,1807.8,1.20019954]
[1745974546153,0.7997,1808.4,1807.8,0.41159954]
[1745974546446,0.7997,1808.4,1807.7,7.04674448]
[1745974546749,0.7719,1808.3,1807.7,7.04674448]
[1745974549351,0.7719,1808.3,1807.7,1.99399882]
[1745974549950,0.7719,1808.3,1807.7,2.049312]
[1745974550176,0.7719,1808.3,1807.7,1.62545766]
[1745974550324,0.7719,1808.3,1807.7,1.57014448]
[1745974550629,0.7719,1808.3,1807.7,1.62545659]
[1745974550830,1.46409,1808.3,1807.7,1.62545659]
[1745974551375,1.46409,1808.3,1807.7,7.15734618]
[1745974552251,0.14415172,1808.2,1807.7,7.10203407]
[1745974552578,0.14415172,1808.2,1807.7,7.15734603]
[1745974552774,0.8281,1808.1,1807.7,1.57014448]
[1745974553141,0.14354576,1808.0,1807.7,1.57014448]
[1745974558362,0.14354576,1808.0,1807.7,1.62545754]
[1745974558661,0.14354576,1808.0,1807.9,1.57014448]
[1745974559059,0.7902,1808.3,1807.9,2.39014448]
[1745974559232,0.14364938,1808.2,1807.9,2.39014448]
[1745974561445,0.14364938,1808.2,1807.9,1.57014448]
[1745974561642,0.14364938,1808.2,1807.7,5.29786465]
[1745974561838,0.7864,1808.1,1807.7,5.29786465]
[1745974562039,0.14354576,1808.0,1807.7,5.29786465]
[1745974563268,0.14354576,1808.0,1807.8,3.72772017]
[1745974564170,0.8263,1807.9,1807.8,3.72772017]
[1745974564462,0.96980386,1807.9,1807.8,3.72772017]
[1745974565935,0.8263,1807.9,1807.8,3.72772017]
[1745974566143,0.8263,1807.9,1807.7,1.57014448]
[1745974566436,0.96980386,1807.9,1807.7,1.57014448]
[1745974568176,0.14350386,1807.9,1807.7,1.57014448]
[1745974570275,0.14350386,1807.9,1807.7,5.29786465]
[1745974576180,0.7966,1808.0,1807.7,5.29786465]
[1745974576688,0.14336301,1807.9,1807.8,3.72772017]
[1745974584318,0.89566301,1807.9,1807.8,3.72772017]
[1745974584810,10.60452931,1807.9,1807.8,3.72772017]
[1745974585309,0.7987,1807.8,1807.7,3.72772017]
[1745974585688,0.94090539,1807.8,1807.7,3.72772017]
[1745974587827,6.29220539,1807.8,1807.7,3.72772017]
[1745974588027,8.10861256,1807.8,1807.7,3.72772017]
[1745974590398,8.10861256,1807.8,1807.3,3.72772017]
[1745974590602,7.12350539,1807.8,1807.3,6.08226465]
[1745974591705,7.12350539,1807.8,1807.3,3.72772017]
[1745974591904,0.8206,1807.7,1807.3,3.72772017]
[1745974592233,0.14208188,1807.6,1807.3,3.72772017]
[1745974592851,0.8206,1807.7,1807.3,3.72772017]
[1745974593139,0.8206,1807.7,1807.3,4.10049219]
[1745974593552,0.14210173,1807.6,1807.3,4.10049219]
[1745974593702,0.8206,1807.7,1807.3,4.10049219]
[1745974594146,0.14210173,1807.6,1807.3,4.10049219]
[1745974594341,0.8206,1807.7,1807.3,4.10049219]
[1745974594640,0.14210173,1807.6,1807.3,4.10049219]
[1745974595049,0.8206,1807.7,1807.3,4.10049219]
[1745974595209,0.14204988,1807.5,1807.3,4.10049219]
[1745974595649,0.8206,1807.7,1807.3,4.10049219]
[1745974595853,0.14200795,1807.4,1807.3,3.72772017]
[1745974596019,0.8206,1807.7,1807.3,3.72772017]
[1745974596223,0.14200795,1807.4,1807.3,3.72772017]
[1745974596422,0.8206,1807.7,1807.2,3.72772017]
[1745974596729,0.14200795,1807.4,1807.2,3.72772017]
[1745974596923,0.14200795,1807.4,1807.3,0.37277202]
[1745974597346,0.8206,1807.7,1807.3,1.17997202]
[1745974597507,0.14211165,1807.6,1807.3,0.8072]
[1745974597712,0.8206,1807.7,1807.3,0.8072]
[1745974598041,0.14211165,1807.6,1807.3,0.8072]
[1745974598410,0.8206,1807.7,1807.3,0.8072]
[1745974598638,0.14211165,1807.6,1807.3,0.8072]
[1745974599040,0.8206,1807.7,1807.3,0.8072]
[1745974599237,0.1420598,1807.5,1807.3,0.8072]
[1745974599457,0.8206,1807.7,1807.3,0.8072]
[1745974599743,0.14028465,1807.6,1807.3,0.8072]
[1745974600087,0.8206,1807.7,1807.3,0.8072]
[1745974600284,0.1402328,1807.5,1807.3,0.8072]
[1745974600442,0.8206,1807.7,1807.2,4.55352017]
[1745974600642,0.14018095,1807.4,1807.2,4.55352017]
[1745974600842,0.8206,1807.7,1807.2,4.55352017]
[1745974601155,0.14027473,1807.6,1807.2,4.55352017]
[1745974601491,0.8206,1807.7,1807.2,3.72772017]
[1745974601678,0.96041296,1807.5,1807.2,3.72772017]
[1745974601993,0.8202,1807.3,1807.2,3.72772017]
[1745974602206,7.82134536,1807.3,1807.2,3.72772017]
[1745974602353,10.82134536,1807.3,1807.2,3.72772017]
[1745974604785,10.82134536,1807.3,1806.8,3.72772017]
[1745974604984,10.82134536,1807.3,1807.1,1.57014448]
[1745974604985,7.11030925,1807.3,1807.1,1.57014448]
[1745974605284,6.29010925,1807.3,1806.9,2.34764448]
[1745974605596,6.29010925,1807.3,1806.9,5.34764448]
[1745974607114,6.29010925,1807.3,1806.9,10.88197712]
[1745974607315,0.14010925,1807.3,1807.2,0.777]
[1745974607702,4.694,1807.6,1807.2,0.777]
[1745974607908,0.13667272,1807.3,1807.2,0.777]
[1745974608109,0.92407272,1807.3,1806.8,0.7727]
[1745974608420,0.13663079,1807.2,1806.8,0.7727]
[1745974608617,0.7874,1807.3,1806.8,0.7727]
[1745974608825,0.13636652,1807.2,1806.8,0.7727]
[1745974608990,0.7874,1807.3,1806.8,0.7727]
[1745974609320,0.13638636,1807.2,1806.8,0.7727]
[1745974609536,0.13638636,1807.2,1807.0,3.72772017]
[1745974609689,0.7874,1807.3,1807.0,3.72772017]
[1745974609903,0.7874,1807.3,1807.0,4.10049219]
[1745974611930,0.7874,1807.3,1807.0,0.37277202]
[1745974612119,0.7874,1807.3,1806.9,1.57014448]
[1745974613842,0.8118,1807.5,1806.9,1.57014448]
[1745974615441,0.8118,1807.5,1806.9,7.1044228]
[1745974615649,0.8118,1807.5,1807.1,1.57014448]
[1745974615806,0.13628036,1807.4,1807.0,0.7674]
[1745974617449,0.13628036,1807.4,1806.8,9.26217126]
[1745974617450,0.7568,1807.2,1806.8,3.72772017]
[1745974617652,0.7568,1807.1,1806.8,3.72772017]
[1745974617971,0.89283162,1807.1,1806.8,3.72772017]
[1745974618522,4.7061761,1807.1,1806.8,3.72772017]
[1745974618732,0.47061761,1807.0,1806.8,3.72772017]
[1745974618937,0.8007,1806.9,1806.8,3.72772017]
[1745974619149,7.08478359,1806.9,1806.8,3.72772017]
[1745974621194,12.21952807,1806.9,1806.8,3.72772017]
[1745974621862,12.21952807,1806.9,1806.1,0.05]
[1745974621863,11.40422807,1806.9,1806.1,3.77772017]
[1745974622064,0.8186,1806.6,1806.1,3.77772017]
[1745974622587,0.8224,1806.4,1806.1,3.77772017]
[1745974622747,11.6604,1806.4,1806.1,3.77772017]
[1745974623071,0.8224,1806.2,1806.1,3.77772017]
[1745974623230,1.83283172,1806.2,1806.1,3.77772017]
[1745974623437,0.95338444,1806.2,1806.1,3.77772017]
[1745974625337,0.95338444,1806.2,1806.1,0.05]
[1745974626137,0.13098444,1806.2,1806.1,0.05]
[1745974629862,0.13098444,1806.2,1806.1,0.8192]
[1745974631173,0.13098444,1806.2,1806.1,7.92613646]
[1745974631678,4.69,1806.7,1806.1,7.92613646]
[1745974632058,0.11571997,1806.6,1806.1,2.38934448]
[1745974633143,0.11571997,1806.6,1806.1,0.8192]
[1745974633487,0.7806,1806.5,1806.1,0.8192]
[1745974633846,0.11570767,1806.4,1806.1,0.8192]
[1745974634173,0.11570767,1806.4,1806.1,1.20112]
[1745974637387,6.15,1806.6,1806.1,6.73778868]
[1745974637678,6.15,1806.6,1806.1,1.20112]
[1745974637893,0.11575956,1806.5,1806.1,1.20112]
[1745974641248,0.11575956,1806.5,1806.1,6.73775507]
[1745974641447,0.11575956,1806.5,1806.3,0.8081]
[1745974643588,0.11575956,1806.5,1806.1,0.8581]
[1745974643988,0.11575956,1806.5,1806.1,6.39478385]
[1745974646981,6.15,1806.6,1806.1,6.39478385]
[1745974647293,0.11787033,1806.5,1806.1,6.39478385]
[1745974647594,0.11787033,1806.5,1806.1,11.93143807]
[1745974647892,6.15,1806.6,1806.1,6.39475422]
[1745974648094,0.11785051,1806.5,1806.1,6.39475422]
[1745974648494,6.15,1806.6,1806.1,6.39475422]
[1745974648791,6.15,1806.6,1806.1,0.8581]
[1745974648997,0.11786042,1806.5,1806.1,6.39486868]
[1745974649295,6.15,1806.6,1806.1,6.39486868]
[1745974649461,0.11805333,1806.5,1806.1,6.39486868]
[1745974649802,6.15,1806.6,1806.1,0.8581]
[1745974650094,0.11805333,1806.5,1806.1,0.8581]
[1745974654700,0.11805333,1806.5,1806.1,0.05]
[1745974663807,0.11805333,1806.5,1806.1,3.77772017]
[1745974666811,0.11805333,1806.5,1806.2,3.72772017]
[1745974670226,0.11805333,1806.5,1806.3,7.10715643]
[1745974670418,0.7736,1806.8,1806.3,7.10708519]
[1745974670618,0.11416482,1806.7,1806.5,7.87271992]
[1745974670803,5.4567,1807.0,1806.5,7.87271992]
[1745974671197,0.10437248,1806.9,1806.5,7.87271992]
[1745974673336,0.10437248,1806.9,1806.5,7.87270369]
[1745974675302,0.10437248,1806.9,1806.7,3.73115965]
[1745974675696,0.10437248,1806.9,1806.7,4.10427562]
[1745974675945,0.10437248,1806.9,1806.8,0.8196]
[1745974676241,6.9441,1807.2,1806.8,6.35424688]
[1745974676397,0.10437722,1807.1,1806.8,6.35424688]
[1745974676597,0.10437722,1807.1,1806.8,0.8196]
[1745974680445,0.10437722,1807.1,1806.8,6.35424531]
[1745974682047,0.10437722,1807.1,1806.8,10.07829177]
[1745974684843,0.10437722,1807.1,1806.8,3.72404646]
[1745974685050,0.8227,1807.0,1806.8,3.72404646]
[1745974685252,0.10907954,1806.9,1806.8,3.72404646]
[1745974687140,0.10907954,1806.9,1806.5,9.25957731]
[1745974687543,0.7552,1806.8,1806.5,3.72404646]
[1745974687845,0.7791,1807.0,1806.5,10.03857823]
[1745974688051,0.10907954,1806.9,1806.5,10.03857823]
[1745974688252,0.10907954,1806.9,1806.5,10.45609911]
[1745974688861,0.10907954,1806.9,1806.5,6.73205265]
[1745974689452,0.10907954,1806.9,1806.6,1.57108685]
[1745974690270,0.10907954,1806.9,1806.6,1.62643126]
[1745974690428,5.449,1807.2,1806.7,6.34073605]
[1745974691030,5.449,1807.2,1806.7,11.87549891]
[1745974691342,0.767,1807.2,1806.7,6.34066286]
[1745974691549,0.767,1807.2,1806.7,6.34064851]
[1745974691756,0.767,1807.2,1806.8,4.57108685]
[1745974691927,6.917,1807.4,1807.0,13.44475246]
[1745974692126,0.767,1807.4,1807.0,13.44469485]
[1745974692436,0.767,1807.6,1807.1,5.53363506]
[1745974692836,0.767,1807.6,1807.1,11.06718746]
[1745974693039,0.767,1807.6,1807.2,5.53340309]
[1745974693366,6.15,1807.7,1807.3,6.339005]
[1745974693532,6.15,1807.7,1807.3,0.8059]
[1745974693733,6.15,1807.7,1807.3,6.33897475]
[1745974694131,0.767,1807.8,1807.4,5.53269179]
[1745974694331,0.767,1807.8,1807.4,5.94397384]
[1745974694578,0.767,1807.8,1807.4,13.04766708]
[1745974694781,6.15,1808.0,1807.6,7.93062302]
[1745974695059,0.7858,1807.9,1807.5,3.0]
[1745974695443,0.10404772,1807.8,1807.4,8.34261977]
[1745974695636,0.7858,1807.9,1807.4,5.09232839]
[1745974695832,0.7858,1807.9,1807.4,4.681]
[1745974696564,0.7858,1807.9,1807.1,1.57108685]
[1745974696565,0.7788,1807.8,1807.1,1.57108685]
[1745974696731,0.69288,1807.8,1807.1,7.10479965]
[1745974696934,0.88677182,1807.7,1807.3,3.72404646]
[1745974699370,0.88677182,1807.7,1807.1,7.10479965]
[1745974699672,0.7788,1807.7,1807.1,7.10479965]
[1745974700332,0.7788,1807.7,1807.0,3.0]
[1745974700531,0.8,1807.6,1807.0,3.0]
[1745974700754,0.90705589,1807.6,1807.0,8.53394161]
[1745974701162,0.90705589,1807.6,1807.0,10.10502846]
[1745974701359,0.90705589,1807.6,1807.0,10.51655605]
[1745974704869,0.90705589,1807.6,1807.0,10.10502846]
[1745974705072,0.90705589,1807.6,1807.0,10.10500656]
[1745974705281,0.90705589,1807.6,1807.0,10.10493177]
[1745974708382,0.10705589,1807.6,1807.0,10.10493177]
[1745974709178,0.10705589,1807.6,1807.0,4.57108685]
[1745974711389,0.775,1807.5,1807.0,10.10511473]
[1745974711754,0.10613596,1807.4,1807.0,10.10511473]
[1745974712787,0.8262,1807.3,1807.0,10.10511473]
[1745974713004,6.9804,1807.7,1807.2,3.0]
[1745974713158,6.9804,1807.7,1807.4,1.57108685]
[1745974713352,6.9804,1807.7,1807.2,10.10437868]
[1745974713783,6.9804,1807.7,1807.2,15.63758988]
[1745974713982,6.9804,1807.7,1807.3,5.53309466]
[1745974714188,6.9804,1807.7,1807.2,10.10429805]
[1745974714487,6.9804,1807.7,1807.2,15.63754043]
[1745974714685,6.9804,1807.7,1807.2,10.10429805]
[1745974714986,6.9804,1807.7,1807.2,15.63752257]
[1745974716511,6.9804,1807.7,1807.3,5.53305117]
[1745974716902,6.9804,1807.7,1807.3,5.53293754]
[1745974717061,6.9804,1807.7,1807.3,11.06582204]
[1745974717573,6.9804,1807.7,1807.4,7.10385607]
[1745974717768,6.9804,1807.7,1807.4,7.1591769]
[1745974718393,6.9804,1807.7,1807.4,7.10385607]
[1745974718566,0.7536,1807.6,1807.2,3.72404646]
[1745974718970,0.7536,1807.4,1807.3,3.72404646]
[1745974719697,0.86160902,1807.4,1807.3,3.72404646]
[1745974721605,0.86160902,1807.4,1807.1,5.53357128]
[1745974722086,0.7536,1807.4,1807.1,5.53357128]
[1745974723495,0.7536,1807.4,1807.1,9.25761774]
[1745974724693,0.7536,1807.4,1807.1,3.72404646]
[1745974726504,0.7536,1807.4,1807.1,9.25775086]
[1745974726805,0.7536,1807.4,1807.1,9.25757373]
[1745974727170,0.10794734,1807.3,1807.2,1.57108685]
[1745974727371,0.7536,1807.4,1807.2,1.57108685]
[1745974727772,0.10794734,1807.3,1807.2,1.57108685]
[1745974728191,0.7536,1807.4,1807.2,1.57108685]
[1745974728400,0.7536,1807.4,1807.2,7.1044762]
[1745974728601,0.10795725,1807.3,1807.2,7.1044762]
[1745974728988,0.7536,1807.4,1807.2,7.1044762]
[1745974729422,0.10795725,1807.3,1807.2,7.1044762]
[1745974729708,0.7536,1807.4,1807.2,7.1044762]
[1745974729912,0.10795725,1807.3,1807.2,7.1044762]
[1745974730122,0.7536,1807.4,1807.2,7.1044762]
[1745974730413,0.10795725,1807.3,1807.2,7.1044762]
[1745974730710,0.8189,1807.5,1807.2,7.1044762]
[1745974731015,0.10802889,1807.4,1807.2,7.9297762]
[1745974732080,0.10802889,1807.4,1807.2,7.92960298]
[1745974732274,6.9136,1807.7,1807.3,5.53311569]
[1745974732512,0.10792986,1807.6,1807.4,1.57108685]
[1745974732811,6.9136,1807.7,1807.4,1.57108685]
[1745974732983,0.10793259,1807.5,1807.4,1.57108685]
[1745974733183,6.9136,1807.7,1807.4,1.57108685]
[1745974733594,0.10806365,1807.6,1807.4,1.57108685]
[1745974733791,0.8124,1807.5,1807.2,1.57108685]
[1745974734002,0.8124,1807.5,1807.2,3.0]
[1745974734324,0.10713772,1807.4,1807.2,8.53340433]
[1745974734530,0.8124,1807.5,1807.2,8.53340433]
[1745974735133,0.8124,1807.5,1807.3,3.72404646]
[1745974735433,0.8124,1807.5,1807.4,0.37240465]
[1745974735628,0.8124,1807.5,1807.3,3.72404646]
[1745974737809,0.8124,1807.5,1807.1,3.72404646]
[1745974739030,0.8124,1807.5,1807.1,5.29513331]
[1745974739198,0.8124,1807.5,1807.1,11.57921521]
[1745974740127,0.8124,1807.5,1807.1,6.04553331]
[1745974742689,0.8124,1807.5,1807.2,3.72404646]
[1745974747429,0.10634563,1807.4,1807.2,3.72404646]
[1745974749434,6.9313,1807.7,1807.3,5.53291681]
[1745974750517,6.9313,1807.7,1807.2,11.64727817]
[1745974750853,6.9313,1807.7,1807.2,17.18049889]
[1745974751650,6.9313,1807.7,1807.3,9.25712599]
[1745974753029,6.9313,1807.7,1807.4,6.32412301]
[1745974753030,6.15,1807.7,1807.4,6.32412301]
[1745974753351,5.4671,1807.9,1807.4,6.32412301]
[1745974753518,0.7901,1807.8,1807.3,3.72404646]
[1745974754146,0.7901,1807.8,1807.5,3.72404646]
[1745974758016,6.9401,1807.8,1807.5,3.72404646]
[1745974759417,6.9401,1807.8,1807.4,3.72404646]
[1745974759621,6.9401,1807.8,1807.4,4.09645111]
[1745974761036,6.9401,1807.8,1807.4,4.86575111]
[1745974761560,6.9401,1807.8,1807.5,3.72404646]
[1745974762341,0.1073829,1807.7,1807.5,3.72404646]
[1745974765857,0.1073829,1807.7,1807.5,4.54444646]
[1745974766056,6.15,1807.8,1807.5,10.07693294]
[1745974766257,0.10769654,1807.6,1807.5,4.54444646]
[1745974766463,6.15,1807.8,1807.5,4.54444646]
[1745974766840,0.10797674,1807.7,1807.5,10.07686894]
[1745974767066,0.10797674,1807.7,1807.5,10.13204638]
[1745974767263,6.15,1807.8,1807.6,5.5319618]
[1745974767962,6.15,1807.8,1807.5,11.64786439]
[1745974768167,6.15,1807.8,1807.5,17.18014614]
[1745974768341,6.15,1807.8,1807.5,11.64781506]
[1745974768742,6.15,1807.8,1807.6,5.53215133]
[1745974768942,6.15,1807.8,1807.6,11.06414926]
[1745974769350,6.15,1807.8,1807.6,9.25604439]
[1745974769831,6.15,1808.1,1807.6,9.25604439]
[1745974770572,6.15,1808.1,1807.6,3.72404646]
[1745974771350,6.9049,1808.2,1807.7,10.08491457]
[1745974772168,6.9049,1808.2,1807.7,4.55304646]
[1745974773058,6.9049,1808.2,1807.7,10.08488343]
[1745974773250,6.9049,1808.2,1807.7,11.65587949]
[1745974773455,0.7833,1808.4,1807.8,5.53141288]
[1745974773665,0.7833,1808.4,1807.9,6.3121468]
[1745974773851,6.15,1808.5,1807.9,6.3121468]
[1745974773852,6.15,1808.5,1808.0,5.53095899]
[1745974774964,0.7834,1808.8,1808.2,0.8328]
[1745974775307,0.8162,1808.7,1808.1,0.7968]
[1745974777090,0.8162,1808.7,1807.9,11.77019676]
[1745974777091,0.8162,1808.7,1807.9,12.53269676]
[1745974777294,0.774,1808.6,1807.9,11.58874322]
[1745974777768,0.774,1808.6,1807.9,4.48654646]
[1745974777968,6.15,1808.5,1807.9,4.48654646]
[1745974778178,0.774,1808.4,1807.9,4.48654646]
[1745974778799,0.774,1808.4,1807.9,0.7625]
[1745974779501,6.15,1808.5,1807.9,2.33358685]
[1745974780115,6.15,1808.5,1807.9,7.86476998]
[1745974780326,6.15,1808.5,1807.9,7.10216089]
[1745974780507,6.15,1808.5,1808.0,0.8172]
[1745974780704,6.15,1808.5,1808.1,7.91881131]
[1745974781018,6.15,1808.5,1808.2,0.7751]
[1745974781428,6.9802,1808.8,1808.2,0.7751]
[1745974781835,8.55128685,1808.8,1808.2,0.7751]
[1745974783322,0.10586721,1808.7,1808.2,0.7751]
[1745974784320,8.55128685,1808.8,1808.2,0.7751]
[1745974784492,0.10586721,1808.7,1808.2,0.7751]
[1745974784693,0.10586721,1808.7,1808.2,6.30533377]
[1745974785221,0.7858,1808.6,1808.2,0.7751]
[1745974785521,0.10581924,1808.5,1808.2,6.30543482]
[1745974785722,6.15,1808.8,1808.3,6.32175234]
[1745974786024,0.10592274,1808.7,1808.3,6.32175234]
[1745974788561,0.10592274,1808.7,1808.3,11.85160155]
[1745974789060,0.10592274,1808.7,1808.3,6.32164921]
[1745974789464,0.10592274,1808.7,1808.3,11.85149568]
[1745974789760,0.10592274,1808.7,1808.3,6.32164647]
[1745974793077,0.10592274,1808.7,1808.3,11.85151283]
[1745974793278,0.10592274,1808.7,1808.3,6.32163643]
[1745974793648,0.10592274,1808.7,1808.4,5.52973509]
[1745974795077,0.10592274,1808.7,1808.3,11.85152567]
[1745974795280,0.10592274,1808.7,1808.3,6.32163643]
[1745974796282,0.10592274,1808.7,1808.3,11.8514828]
[1745974796581,0.10592274,1808.7,1808.3,11.85147868]
[1745974796756,0.10592274,1808.7,1808.3,6.32163643]
[1745974796951,0.10592274,1808.7,1808.3,11.85148138]
[1745974797166,0.10592274,1808.7,1808.3,11.85147441]
[1745974797381,0.10592274,1808.7,1808.3,6.32163643]
[1745974798051,0.10592274,1808.7,1808.4,5.52974708]
[1745974798684,0.10592274,1808.7,1808.3,6.32163643]
[1745974798979,0.10592274,1808.7,1808.3,5.52983643]
[1745974799181,0.10592274,1808.7,1808.1,8.53064042]
[1745974799182,0.7739,1808.6,1808.1,13.9594924]
[1745974799374,0.10710705,1808.5,1808.1,3.7659]
[1745974799573,0.10710705,1808.5,1808.1,0.7659]
[1745974800481,6.25710705,1808.5,1808.1,0.7659]
[1745974800683,0.815,1808.4,1808.0,3.72404646]
[1745974800982,6.965,1808.4,1808.0,3.72404646]
[1745974801189,6.965,1808.4,1808.0,9.25488569]
[1745974801621,6.15,1808.4,1808.1,5.53060446]
[1745974801902,0.10710705,1808.5,1808.2,1.57108685]
[1745974802049,0.10710705,1808.5,1808.4,5.52975005]
[1745974803191,0.05,1808.9,1808.7,0.55]
[1745974803361,0.05,1808.9,1808.8,16.17748064]
[1745974803692,0.05,1808.9,1808.8,9.8881272]
[1745974803986,0.05,1808.9,1808.8,8.4726]
[1745974804294,0.05,1808.9,1808.8,14.0011272]
[1745974804787,0.05,1808.9,1808.8,9.3381272]
[1745974804997,0.05,1808.9,1808.8,9.39340049]
[1745974805158,0.05,1808.9,1808.8,14.05640022]
[1745974805368,0.05,1808.9,1808.8,9.85270526]
[1745974805575,0.05,1808.9,1808.8,14.57097855]
[1745974805883,0.05,1808.9,1808.8,14.51570526]
[1745974806501,0.05,1808.9,1808.8,18.23975172]
[1745974807072,6.9084,1809.5,1808.9,5.52804824]
[1745974807272,7.59924,1809.5,1808.9,5.52804824]
[1745974807474,7.59924,1809.5,1809.0,0.51457806]
[1745974807686,7.59924,1809.5,1809.1,0.51457806]
[1745974808302,0.8111,1809.4,1809.2,0.51457806]
[1745974808684,0.8111,1809.4,1808.8,14.00093493]
[1745974809073,0.8111,1809.4,1808.8,8.4726]
[1745974809296,0.8111,1809.4,1808.9,0.51370907]
[1745974810010,0.8111,1809.4,1809.0,0.51370907]
[1745974810209,0.8111,1809.4,1808.9,5.52821021]
[1745974810578,0.8111,1809.4,1808.9,1.57108685]
[1745974810904,6.9611,1809.4,1808.9,7.0991763]
[1745974811092,6.9611,1809.4,1809.0,0.51363562]
[1745974811697,6.9611,1809.4,1809.1,0.51363562]
[1745974812088,6.9611,1809.4,1808.9,5.52803287]
[1745974812289,6.9611,1809.4,1809.0,0.51357285]
[1745974812797,6.9611,1809.4,1809.1,0.51357285]
[1745974813320,6.9611,1809.4,1808.9,5.52807531]
[1745974813519,6.9611,1809.4,1808.8,9.33793037]
[1745974813717,0.8147,1809.3,1808.8,10.19043025]
[1745974814007,0.8147,1809.3,1808.9,0.51364935]
[1745974814493,0.8147,1809.3,1809.0,0.51364935]
[1745974815091,0.8147,1809.3,1808.9,5.52818431]
[1745974815409,0.8147,1809.3,1808.9,5.52800705]
[1745974815785,0.8147,1809.3,1808.9,7.0990939]
[1745974815978,0.8147,1809.3,1808.9,7.8636939]
[1745974816310,0.8147,1809.3,1809.0,0.51365071]
[1745974817108,0.8147,1809.3,1808.8,10.99588061]
[1745974817305,0.8061,1809.2,1808.7,17.31481527]
[1745974817508,6.9561,1809.2,1808.8,0.51377581]
[1745974817714,0.8061,1809.1,1808.8,0.51377581]
[1745974817881,6.9561,1809.1,1808.8,0.51377581]
[1745974818081,6.9561,1809.1,1808.9,0.51377581]
[1745974818281,6.9561,1809.1,1808.8,0.51377581]
[1745974818690,0.7579,1809.0,1808.9,0.51377581]
[1745974819314,0.7579,1809.0,1808.8,0.51377581]
[1745974820290,0.7579,1809.0,1808.5,0.51377581]
[1745974820492,0.7579,1809.0,1808.4,3.72404646]
[1745974820715,6.9394,1808.9,1808.6,0.51428331]
[1745974820921,7.63334,1808.9,1808.6,0.51428331]
[1745974821417,7.63334,1808.9,1808.4,3.72404646]
[1745974821625,0.7894,1808.8,1808.4,3.72404646]
[1745974821817,0.7894,1808.8,1808.5,0.51430287]
[1745974822121,0.7894,1808.8,1808.4,3.72404646]
[1745974822825,0.7894,1808.8,1808.2,10.19211224]
[1745974823320,0.7894,1808.8,1808.3,0.51429604]
[1745974823507,6.15,1808.7,1808.3,0.51429604]
[1745974823823,0.7895,1808.6,1808.4,0.51429604]
[1745974824159,6.9395,1808.5,1808.2,0.51429604]
[1745974824886,6.9395,1808.5,1808.1,3.72404646]
[1745974825282,6.9395,1808.5,1808.0,3.72404646]
[1745974825492,0.7856,1808.4,1808.0,3.72404646]
[1745974825797,0.7856,1808.4,1808.1,0.51418996]
[1745974826011,0.7856,1808.4,1808.0,3.72404646]
[1745974828528,0.7856,1808.4,1807.8,8.53142251]
[1745974828529,6.15,1808.3,1807.8,8.53142251]
[1745974828829,6.15,1808.3,1807.9,1.28715558]
[1745974829328,6.15,1808.3,1808.0,0.51365558]
[1745974829500,0.7741,1808.2,1808.0,0.51365558]
[1745974829705,0.7741,1808.2,1807.8,3.0]
[1745974830325,0.7741,1808.2,1807.9,0.51356483]
[1745974830732,0.7741,1808.2,1807.8,8.53158313]
[1745974831328,0.7741,1808.2,1807.8,8.58689248]
[1745974831528,0.7741,1808.2,1807.8,8.53158313]
[1745974831706,0.7741,1808.2,1807.9,0.51349488]
[1745974832096,0.7741,1808.2,1807.8,8.53156878]
[1745974833132,0.7741,1808.2,1807.9,0.51346944]
[1745974833797,0.7741,1808.2,1807.7,7.663]
[1745974834209,6.9241,1808.2,1807.8,0.51371792]
[1745974834610,6.9241,1808.2,1807.9,0.51371792]
[1745974835128,6.9241,1808.2,1807.8,0.51371792]
[1745974838824,0.7628,1808.1,1807.8,0.86508971]
[1745974839332,0.7628,1808.1,1807.6,7.86443139]
[1745974840009,0.7628,1808.1,1807.7,0.51385301]
[1745974840600,0.7628,1808.1,1807.8,0.51385301]
[1745974842040,0.7628,1808.1,1807.7,0.51385301]
[1745974844619,0.7628,1808.1,1807.8,2.08493986]
[1745974844927,6.15,1808.2,1807.8,7.61650491]
[1745974845122,6.15,1808.2,1807.8,6.04541806]
[1745974845351,6.15,1808.2,1807.8,6.10072719]
[1745974845547,6.15,1808.2,1807.9,0.51385301]
[1745974846210,6.15,1808.2,1807.8,0.51385301]
[1745974846677,6.15,1808.2,1807.8,11.63204339]
[1745974846812,6.15,1808.2,1807.8,8.43150872]
[1745974847017,6.15,1808.2,1807.9,5.53116337]
[1745974847249,6.15,1808.2,1807.9,0.51385301]
[1745974847952,6.15,1808.2,1808.0,0.51385301]
[1745974848147,6.15,1808.2,1808.1,0.51385301]
[1745974848946,6.9784,1808.3,1808.1,0.51385301]
[1745974849167,6.9784,1808.3,1808.2,0.51385301]
[1745974850212,6.96844425,1808.3,1808.2,0.51385301]
[1745974852076,6.15,1808.3,1808.2,0.51385301]
[1745974852848,6.15,1808.7,1808.2,6.04421469]
[1745974853171,0.7507,1808.7,1808.3,0.51385301]
[1745974853738,0.7507,1808.7,1808.4,0.51385301]
[1745974854073,0.7507,1808.7,1808.5,0.51385301]
[1745974854369,6.9196,1808.8,1808.5,0.51385301]
[1745974854571,6.15,1808.8,1808.5,0.51385301]
[1745974854883,6.15,1808.8,1808.6,0.51385301]
[1745974855040,11.5826,1808.9,1808.6,0.51385301]
[1745974855240,11.5826,1808.9,1808.7,0.51385301]
[1745974855448,6.9196,1808.9,1808.7,0.51385301]
[1745974855976,6.9196,1808.9,1808.4,6.34692822]
[1745974856677,6.9196,1808.9,1808.5,0.51563823]
[1745974857175,6.9196,1808.9,1808.6,0.51563823]
[1745974857468,6.9196,1808.9,1808.7,0.51563823]
[1745974858064,6.9196,1808.9,1808.3,10.19202668]
[1745974858772,0.7549,1808.8,1808.2,0.8322]
[1745974858953,0.7549,1808.6,1808.4,0.51539684]
[1745974859157,0.7549,1808.6,1808.5,0.51539684]